fUSD/lending_fUSD_20240925
["ID","MTS","AMOUNT","RATE_DAILY","PERIOD"]
[339168370,1727273432145,-150.0,0.00012728,2]
[339168371,1727273432154,-150.0,0.00012732,2]
[339168372,1727273432163,-150.0,0.00012732,2]
[339168373,1727273432172,-150.0,0.00012734,2]
[339168374,1727273432181,-150.0,0.00012735,2]
[339168375,1727273432190,-150.0,0.00012736,2]
[339168376,1727273432199,-150.0,0.00012744,2]
[339168377,1727273432208,-150.0,0.00012754,2]
[339168378,1727273432217,-150.0,0.00012756,2]
[339168379,1727273432226,-150.0,0.00012758,2]
[339168380,1727273432236,-150.0,0.0001276,2]
[339168382,1727273432245,-150.0,0.0001276,2]
[339168384,1727273432253,-150.0,0.0001276,2]
[339168385,1727273432262,-150.0,0.00012764,2]
[339168386,1727273432271,-150.0,0.00012765,2]
[339168387,1727273432280,-150.0,0.00012766,2]
[339168388,1727273432289,-150.0,0.00012768,2]
[339168389,1727273432297,-150.0,0.0001277,2]
[339168390,1727273432306,-150.0,0.00012772,2]
[339168391,1727273432315,-4805.093,0.00012776,2]
[339168392,1727273432327,-150.0,0.00012776,2]
[339168393,1727273432336,-150.0,0.0001278,2]
[339168394,1727273432345,-150.0,0.0001278,2]
[339168395,1727273432354,-150.0,0.0001278,2]
[339168396,1727273432364,-150.0,0.00012784,2]
[339168397,1727273432373,-150.0,0.00012784,2]
[339168398,1727273432382,-7500.0,0.00012785,2]
[339168399,1727273432391,-684.31913304,0.00012785,2]
[339168400,1727273434755,338.21,0.00013918,30]
[339168405,1727273438767,-565.02912286,0.0001272,2]
[339168406,1727273438779,-93.29487714,0.0001272,2]
[339168407,1727273438788,-7682.25299673,0.00012783,2]
[339168408,1727273438799,-1595.48310882,0.00012783,2]
[339168409,1727273438810,-14979.50612864,0.00012783,2]
[339168410,1727273438826,-4279.73361318,0.00012783,2]
[339168411,1727273438842,-469.05844381,0.00012783,2]
[339168412,1727273439141,-8034.35895108,0.00012783,2]
[339168413,1727273439153,-692.33000174,0.00012783,2]
[339168414,1727273439164,-564.662132,0.00012783,2]
[339168418,1727273439595,-7361.32955188,0.00012783,2]
[339168420,1727273439620,-54341.28507212,0.00012783,2]
[339168421,1727273439630,-478.50446696,0.00012785,2]
[339168422,1727273439639,-500.0,0.00012785,2]
[339168423,1727273439649,-327.48243249,0.00012785,2]
[339168424,1727273439659,-150.0,0.00012787,2]
[339168425,1727273439668,-304.37988106,0.00012787,2]
[339168426,1727273439677,-150.0,0.00012789,2]
[339168427,1727273439686,-150.0,0.00012791,2]
[339168428,1727273439695,-150.0,0.00012793,2]
[339168429,1727273439705,-3356.9784,0.00012794,2]
[339168430,1727273439714,-252.43,0.00012795,2]
[339168431,1727273439723,-252.43,0.00012795,2]
[339168432,1727273439733,-252.43,0.00012795,2]
[339168433,1727273439742,-252.43,0.00012795,2]
[339168434,1727273439751,-252.43,0.00012795,2]
[339168435,1727273439760,-252.43,0.00012795,2]
[339168436,1727273439769,-252.43,0.00012795,2]
[339168437,1727273439778,-150.0,0.00012796,2]
[339168438,1727273439787,-175.18324583,0.00012799,2]
[339168439,1727273439796,-150.0,0.00012799,2]
[339168440,1727273439805,-303.46,0.000128,2]
[339168441,1727273439815,-150.0,0.000128,2]
[339168442,1727273439824,-1003.26,0.000128,2]
[339168443,1727273439834,-150.0,0.000128,2]
[339168444,1727273439843,-151.49,0.000128,2]
[339168445,1727273439852,-150.0,0.000128,2]
[339168446,1727273439861,-150.0,0.00012801,2]
[339168447,1727273439870,-327.48243243,0.00012801,2]
[339168448,1727273439879,-150.0,0.00012802,2]
[339168449,1727273439888,-150.0,0.00012804,2]
[339168450,1727273439898,-121654.96145444,0.00012805,2]
[339168451,1727273439907,-150.0,0.00012809,2]
[339168452,1727273439916,-150.0,0.00012812,2]
[339168453,1727273439926,-150.0,0.00012814,2]
[339168454,1727273439935,-150.0,0.00012816,2]
[339168455,1727273439944,-327.48243243,0.00012818,2]
[339168456,1727273439953,-150.0,0.00012818,2]
[339168457,1727273439962,-150.0,0.00012818,2]
[339168458,1727273439971,-150.0,0.00012819,2]
[339168459,1727273439980,-150.0,0.00012821,2]
[339168460,1727273439989,-150.0,0.00012821,2]
[339168461,1727273440001,-500.0,0.00012822,2]
[339168463,1727273440010,-500.0,0.00012822,2]
[339168465,1727273440019,-500.0,0.00012822,2]
[339168467,1727273440028,-150.0,0.00012823,2]
[339168469,1727273440038,-150.0,0.00012824,2]
[339168471,1727273440047,-150.0,0.00012825,2]
[339168473,1727273440056,-150.0,0.00012831,2]
[339168475,1727273440065,-150.0,0.00012833,2]
[339168477,1727273440076,-252.43,0.00012836,2]
[339168479,1727273440087,-150.0,0.00012837,2]
[339168481,1727273440096,-150.0,0.00012842,2]
[339168483,1727273440104,-150.0,0.00012844,2]
[339168485,1727273440113,-500.0,0.00012846,2]
[339168486,1727273440123,-150.0,0.00012847,2]
[339168488,1727273440132,-150.0,0.00012852,2]
[339168490,1727273440142,-150.0,0.00012853,2]
[339168492,1727273440150,-150.0,0.00012855,2]
[339168494,1727273440160,-150.0,0.00012857,2]
[339168496,1727273440169,-150.0,0.00012861,2]
[339168498,1727273440178,-150.0,0.00012862,2]
[339168500,1727273440187,-150.0,0.00012864,2]
[339168502,1727273440196,-150.0,0.00012864,2]
[339168504,1727273440205,-150.0,0.00012864,2]
[339168505,1727273440214,-150.0,0.00012867,2]
[339168507,1727273440223,-150.0,0.00012869,2]
[339168509,1727273440232,-500.0,0.00012873,2]
[339168511,1727273440241,-500.0,0.00012873,2]
[339168513,1727273440250,-500.0,0.00012873,2]
[339168515,1727273440259,-306.44469223,0.00012873,2]
[339168517,1727273440268,-500.0,0.00012873,2]
[339168519,1727273440277,-252.43,0.00012874,2]
[339168521,1727273440286,-252.43,0.00012874,2]
[339168523,1727273440295,-5800.0,0.00012875,2]
[339168525,1727273440305,-150.0,0.00012876,2]
[339168526,1727273440314,-150.0,0.00012878,2]
[339168528,1727273440324,-5800.0,0.00012883,2]
[339168530,1727273440335,-773.74126147,0.00012884,2]
[339168532,1727273440345,-500.0,0.00012884,2]
[339168534,1727273440354,-500.0,0.00012884,2]
[339168536,1727273440363,-500.0,0.00012884,2]
[339168538,1727273440372,-2475.58,0.00012884,2]
[339168540,1727273440382,-500.0,0.00012884,2]
[339168542,1727273440391,-1037.38,0.00012884,2]
[339168544,1727273440400,-500.0,0.00012884,2]
[339168546,1727273440409,-560.87,0.00012884,2]
[339168548,1727273440418,-500.0,0.00012884,2]
[339168550,1727273440428,-500.0,0.00012884,2]
[339168552,1727273440437,-500.0,0.00012884,2]
[339168554,1727273440446,-500.0,0.00012884,2]
[339168556,1727273440455,-500.0,0.00012884,2]
[339168558,1727273440464,-500.0,0.00012884,2]
[339168560,1727273440473,-500.0,0.00012884,2]
[339168562,1727273440482,-500.0,0.00012884,2]
[339168564,1727273440492,-500.0,0.00012884,2]
[339168565,1727273440501,-500.0,0.00012884,2]
[339168567,1727273440510,-500.0,0.00012884,2]
[339168569,1727273440519,-500.0,0.00012884,2]
[339168571,1727273440529,-526.08,0.00012884,2]
[339168573,1727273440538,-500.0,0.00012884,2]
[339168575,1727273440547,-1335.16,0.00012884,2]
[339168577,1727273440557,-819.91,0.00012884,2]
[339168579,1727273440566,-500.0,0.00012884,2]
[339168581,1727273440575,-500.0,0.00012884,2]
[339168582,1727273440586,-3682.71,0.00012884,2]
[339168583,1727273440595,-500.0,0.00012884,2]
[339168584,1727273440603,-500.0,0.00012884,2]
[339168586,1727273440613,-2049.97,0.00012884,2]
[339168588,1727273440622,-500.0,0.00012884,2]
[339168590,1727273440631,-500.0,0.00012884,2]
[339168591,1727273440640,-500.0,0.00012884,2]
[339168592,1727273440649,-500.0,0.00012884,2]
[339168593,1727273440658,-500.0,0.00012884,2]
[339168594,1727273440667,-500.0,0.00012884,2]
[339168595,1727273440675,-500.0,0.00012884,2]
[339168596,1727273440684,-572.81,0.00012884,2]
[339168597,1727273440693,-500.0,0.00012884,2]
[339168598,1727273440702,-500.0,0.00012884,2]
[339168599,1727273440711,-500.0,0.00012884,2]
[339168600,1727273440720,-500.0,0.00012884,2]
[339168601,1727273440729,-506.19094781,0.00012884,2]
[339168602,1727273440738,-676.36,0.00012884,2]
[339168603,1727273440747,-576.64,0.00012884,2]
[339168604,1727273440756,-939.62,0.00012884,2]
[339168605,1727273440765,-500.0,0.00012884,2]
[339168606,1727273440774,-500.0,0.00012885,2]
[339168607,1727273440783,-500.0,0.00012885,2]
[339168608,1727273440793,-1136.59,0.00012885,2]
[339168609,1727273440802,-1120.77,0.00012885,2]
[339168610,1727273440811,-1147.34,0.00012885,2]
[339168611,1727273440820,-552.27,0.00012885,2]
[339168612,1727273440831,-1268.86,0.00012885,2]
[339168613,1727273440840,-1445.38,0.00012885,2]
[339168614,1727273440849,-500.0,0.00012885,2]
[339168615,1727273440859,-500.0,0.00012885,2]
[339168616,1727273440868,-344.24310802,0.00012885,2]
[339168617,1727273440877,-500.0,0.00012885,2]
[339168618,1727273440887,-500.0,0.00012885,2]
[339168619,1727273440896,-500.0,0.00012885,2]
[339168620,1727273440904,-500.0,0.00012885,2]
[339168621,1727273440914,-500.0,0.00012885,2]
[339168622,1727273440923,-180.43692901,0.00012885,2]
[339168623,1727273440932,-4164.09,0.00012885,2]
[339168624,1727273440942,-6445.88,0.00012885,2]
[339168625,1727273440951,-500.0,0.00012885,2]
[339168626,1727273440960,-5633.44,0.00012885,2]
[339168627,1727273440969,-500.0,0.00012885,2]
[339168628,1727273440978,-5377.26,0.00012885,2]
[339168629,1727273440987,-1854.31,0.00012885,2]
[339168630,1727273440998,-500.0,0.00012885,2]
[339168631,1727273441007,-2309.81,0.00012885,2]
[339168632,1727273441016,-500.0,0.00012885,2]
[339168633,1727273441025,-1580.12,0.00012885,2]
[339168634,1727273441034,-1165.05,0.00012885,2]
[339168635,1727273441043,-500.0,0.00012885,2]
[339168636,1727273441052,-500.0,0.00012885,2]
[339168637,1727273441062,-500.0,0.00012885,2]
[339168638,1727273441071,-508.02812677,0.00012885,2]
[339168639,1727273441081,-500.0,0.00012885,2]
[339168640,1727273441090,-500.0,0.00012885,2]
[339168641,1727273441099,-500.0,0.00012885,2]
[339168642,1727273441109,-1132.65,0.00012885,2]
[339168643,1727273441118,-500.0,0.00012885,2]
[339168644,1727273441127,-500.0,0.00012885,2]
[339168645,1727273441136,-977.16,0.00012885,2]
[339168646,1727273441145,-1893.02,0.00012885,2]
[339168647,1727273441155,-500.0,0.00012885,2]
[339168648,1727273441164,-500.0,0.00012885,2]
[339168649,1727273441173,-4871.47,0.00012885,2]
[339168650,1727273441183,-500.0,0.00012885,2]
[339168651,1727273441193,-500.0,0.00012885,2]
[339168652,1727273441202,-500.0,0.00012885,2]
[339168653,1727273441212,-500.0,0.00012885,2]
[339168654,1727273441221,-500.0,0.00012885,2]
[339168655,1727273441230,-500.0,0.00012885,2]
[339168656,1727273441240,-2373.4,0.00012885,2]
[339168657,1727273441249,-1030.35,0.00012885,2]
[339168658,1727273441258,-2171.5,0.00012885,2]
[339168659,1727273441268,-500.0,0.00012885,2]
[339168660,1727273441278,-500.0,0.00012885,2]
[339168661,1727273441287,-500.0,0.00012885,2]
[339168662,1727273441297,-500.0,0.00012885,2]
[339168663,1727273441307,-5059.45,0.00012885,2]
[339168664,1727273441316,-2799.94,0.00012885,2]
[339168665,1727273441326,-519.84,0.00012885,2]
[339168666,1727273441337,-500.0,0.00012885,2]
[339168667,1727273441347,-1477.97,0.00012885,2]
[339168668,1727273441358,-500.0,0.00012885,2]
[339168669,1727273441368,-500.0,0.00012885,2]
[339168670,1727273441377,-3612.8,0.00012885,2]
[339168671,1727273441387,-500.0,0.00012885,2]
[339168672,1727273441397,-500.0,0.00012885,2]
[339168673,1727273441407,-1281.84,0.00012885,2]
[339168674,1727273441416,-611.24938301,0.00012885,2]
[339168675,1727273441425,-500.0,0.00012885,2]
[339168676,1727273441435,-500.0,0.00012885,2]
[339168678,1727273441444,-500.0,0.00012885,2]
[339168679,1727273441453,-500.0,0.00012885,2]
[339168681,1727273441463,-500.0,0.00012885,2]
[339168683,1727273441472,-896.43,0.00012885,2]
[339168685,1727273441481,-500.0,0.00012885,2]
[339168686,1727273441490,-500.0,0.00012885,2]
[339168688,1727273441500,-505.21,0.00012885,2]
[339168690,1727273441510,-500.0,0.00012885,2]
[339168692,1727273441519,-508.45,0.00012885,2]
[339168694,1727273441528,-2991.08,0.00012885,2]
[339168696,1727273441538,-500.0,0.00012885,2]
[339168698,1727273441547,-500.0,0.00012885,2]
[339168700,1727273441556,-3918.91,0.00012885,2]
[339168702,1727273441566,-500.0,0.00012885,2]
[339168704,1727273441575,-1947.44,0.00012885,2]
[339168705,1727273441587,-500.0,0.00012885,2]
[339168707,1727273441597,-1462.0,0.00012885,2]
[339168709,1727273441606,-500.0,0.00012885,2]
[339168711,1727273441615,-500.0,0.00012885,2]
[339168713,1727273441625,-500.0,0.00012885,2]
[339168715,1727273441634,-500.0,0.00012885,2]
[339168717,1727273441644,-500.0,0.00012885,2]
[339168719,1727273441653,-500.0,0.00012885,2]
[339168721,1727273441662,-500.0,0.00012885,2]
[339168723,1727273441671,-500.0,0.00012885,2]
[339168725,1727273441680,-500.0,0.00012885,2]
[339168726,1727273441689,-500.0,0.00012885,2]
[339168728,1727273441699,-500.0,0.00012885,2]
[339168730,1727273441708,-500.0,0.00012885,2]
[339168732,1727273441718,-500.0,0.00012885,2]
[339168734,1727273441727,-500.0,0.00012885,2]
[339168736,1727273441737,-500.0,0.00012885,2]
[339168738,1727273441746,-500.0,0.00012885,2]
[339168740,1727273441756,-630.53,0.00012885,2]
[339168742,1727273441765,-500.0,0.00012885,2]
[339168744,1727273441774,-500.0,0.00012885,2]
[339168745,1727273441785,-577.45,0.00012885,2]
[339168747,1727273441794,-724.93,0.00012885,2]
[339168749,1727273441804,-626.27595842,0.00012885,2]
[339168751,1727273441813,-500.0,0.00012885,2]
[339168753,1727273441822,-500.0,0.00012885,2]
[339168755,1727273441833,-500.0,0.00012885,2]
[339168757,1727273441842,-500.0,0.00012885,2]
[339168759,1727273441851,-500.0,0.00012885,2]
[339168760,1727273441860,-500.0,0.00012885,2]
[339168762,1727273441869,-500.0,0.00012885,2]
[339168764,1727273441879,-500.0,0.00012885,2]
[339168766,1727273441888,-500.0,0.00012885,2]
[339168768,1727273441897,-529.98,0.00012885,2]
[339168770,1727273441907,-1019.3,0.00012885,2]
[339168772,1727273441916,-500.0,0.00012885,2]
[339168774,1727273441925,-500.0,0.00012885,2]
[339168775,1727273441934,-500.0,0.00012885,2]
[339168777,1727273441944,-500.0,0.00012885,2]
[339168779,1727273441953,-500.0,0.00012885,2]
[339168781,1727273441963,-1944.79,0.00012885,2]
[339168783,1727273441972,-500.0,0.00012885,2]
[339168785,1727273441982,-500.0,0.00012885,2]
[339168787,1727273441992,-500.0,0.00012885,2]
[339168789,1727273442005,-500.0,0.00012885,2]
[339168791,1727273442015,-500.0,0.00012885,2]
[339168793,1727273442024,-500.0,0.00012885,2]
[339168795,1727273442034,-500.0,0.00012885,2]
[339168797,1727273442045,-500.0,0.00012885,2]
[339168799,1727273442054,-500.0,0.00012885,2]
[339168801,1727273442064,-3609.64,0.00012885,2]
[339168802,1727273442074,-500.0,0.00012885,2]
[339168804,1727273442087,-500.0,0.00012885,2]
[339168806,1727273442102,-500.0,0.00012885,2]
[339168808,1727273442111,-1197.3,0.00012885,2]
[339168810,1727273442120,-500.0,0.00012885,2]
[339168812,1727273442129,-500.0,0.00012885,2]
[339168814,1727273442140,-500.0,0.00012885,2]
[339168816,1727273442150,-500.0,0.00012885,2]
[339168818,1727273442159,-500.0,0.00012885,2]
[339168819,1727273442169,-500.0,0.00012885,2]
[339168821,1727273442179,-1485.82,0.00012885,2]
[339168823,1727273442188,-500.0,0.00012885,2]
[339168825,1727273442197,-500.0,0.00012885,2]
[339168827,1727273442206,-500.0,0.00012885,2]
[339168829,1727273442215,-500.0,0.00012885,2]
[339168830,1727273442224,-500.0,0.00012885,2]
[339168832,1727273442233,-500.0,0.00012885,2]
[339168834,1727273442242,-467.30324684,0.00012885,2]
[339168836,1727273442252,-312.3625663,0.00012885,2]
[339168837,1727273442261,-500.0,0.00012885,2]
[339168838,1727273442271,-500.0,0.00012885,2]
[339168839,1727273442280,-500.0,0.00012885,2]
[339168840,1727273442289,-500.0,0.00012885,2]
[339168841,1727273442298,-500.0,0.00012885,2]
[339168842,1727273442306,-627.08,0.00012885,2]
[339168843,1727273442317,-500.0,0.00012885,2]
[339168844,1727273442326,-500.0,0.00012885,2]
[339168845,1727273442338,-500.0,0.00012885,2]
[339168846,1727273442347,-500.0,0.00012885,2]
[339168847,1727273442356,-500.0,0.00012885,2]
[339168848,1727273442367,-547.71,0.00012885,2]
[339168849,1727273442376,-500.0,0.00012885,2]
[339168850,1727273442385,-518.4,0.00012885,2]
[339168851,1727273442394,-500.0,0.00012885,2]
[339168852,1727273442403,-500.0,0.00012885,2]
[339168853,1727273442412,-500.0,0.00012885,2]
[339168854,1727273442421,-2171.94,0.00012885,2]
[339168855,1727273442430,-500.0,0.00012885,2]
[339168856,1727273442439,-500.0,0.00012885,2]
[339168857,1727273442448,-500.0,0.00012885,2]
[339168858,1727273442458,-500.0,0.00012885,2]
[339168859,1727273442467,-2260.79,0.00012885,2]
[339168860,1727273442477,-500.0,0.00012885,2]
[339168861,1727273442486,-187.1592646,0.00012885,2]
[339168862,1727273442495,-500.0,0.00012885,2]
[339168863,1727273442505,-500.0,0.00012885,2]
[339168864,1727273442514,-500.0,0.00012885,2]
[339168865,1727273442523,-187.28044272,0.00012885,2]
[339168866,1727273442532,-500.0,0.00012885,2]
[339168867,1727273442542,-942.02,0.00012885,2]
[339168868,1727273442551,-500.0,0.00012885,2]
[339168869,1727273442560,-500.0,0.00012885,2]
[339168870,1727273442570,-500.0,0.00012885,2]
[339168871,1727273442579,-632.57,0.00012885,2]
[339168872,1727273442591,-1230.7,0.00012885,2]
[339168873,1727273442600,-670.46,0.00012885,2]
[339168874,1727273442609,-500.0,0.00012885,2]
[339168875,1727273442618,-1780.49,0.00012885,2]
[339168876,1727273442627,-918.46,0.00012885,2]
[339168878,1727273442636,-500.0,0.00012885,2]
[339168879,1727273442646,-2924.04,0.00012885,2]
[339168881,1727273442655,-500.0,0.00012885,2]
[339168883,1727273442665,-500.0,0.00012885,2]
[339168886,1727273442674,-779.51,0.00012885,2]
[339168889,1727273442683,-500.0,0.00012886,2]
[339168893,1727273442692,-500.0,0.00012886,2]
[339168897,1727273442702,-500.0,0.00012886,2]
[339168901,1727273442711,-500.0,0.00012886,2]
[339168904,1727273442720,-500.0,0.00012886,2]
[339168909,1727273442730,-542.54840329,0.00012886,2]
[339168911,1727273442739,-500.0,0.00012886,2]
[339168913,1727273442749,-500.0,0.00012886,2]
[339168915,1727273442758,-500.0,0.00012886,2]
[339168917,1727273442768,-500.0,0.00012886,2]
[339168919,1727273442778,-500.0,0.00012886,2]
[339168921,1727273442788,-500.0,0.00012886,2]
[339168923,1727273442797,-500.0,0.00012886,2]
[339168925,1727273442806,-500.0,0.00012886,2]
[339168927,1727273442816,-500.0,0.00012886,2]
[339168929,1727273442825,-577.02,0.00012886,2]
[339168931,1727273442837,-500.0,0.00012886,2]
[339168933,1727273442847,-899.48,0.00012886,2]
[339168935,1727273442856,-500.0,0.00012886,2]
[339168937,1727273442867,-597.1,0.00012886,2]
[339168939,1727273442876,-979.75,0.00012886,2]
[339168941,1727273442885,-900.95,0.00012886,2]
[339168943,1727273442895,-649.74,0.00012886,2]
[339168945,1727273442904,-500.0,0.00012886,2]
[339168947,1727273442914,-500.0,0.00012886,2]
[339168949,1727273442924,-500.0,0.00012886,2]
[339168951,1727273442933,-500.0,0.00012886,2]
[339168952,1727273442943,-500.0,0.00012886,2]
[339168953,1727273442952,-500.0,0.00012886,2]
[339168954,1727273442961,-500.0,0.00012886,2]
[339168955,1727273442970,-724.52,0.00012886,2]
[339168956,1727273442980,-500.0,0.00012886,2]
[339168957,1727273442990,-500.0,0.00012886,2]
[339168958,1727273442999,-500.0,0.00012886,2]
[339168959,1727273443011,-516.67,0.00012886,2]
[339168960,1727273443020,-500.0,0.00012886,2]
[339168961,1727273443029,-500.0,0.00012886,2]
[339168962,1727273443038,-500.0,0.00012886,2]
[339168963,1727273443048,-500.0,0.00012886,2]
[339168964,1727273443057,-500.0,0.00012886,2]
[339168965,1727273443068,-500.0,0.00012886,2]
[339168966,1727273443077,-500.0,0.00012886,2]
[339168967,1727273443089,-500.0,0.00012886,2]
[339168968,1727273443098,-535.32565145,0.00012886,2]
[339168969,1727273443108,-500.0,0.00012886,2]
[339168970,1727273443117,-500.0,0.00012886,2]
[339168971,1727273443127,-500.0,0.00012886,2]
[339168972,1727273443136,-500.0,0.00012886,2]
[339168973,1727273443145,-500.0,0.00012886,2]
[339168974,1727273443154,-500.0,0.00012886,2]
[339168975,1727273443163,-500.0,0.00012886,2]
[339168976,1727273443173,-500.0,0.00012886,2]
[339168977,1727273443183,-500.0,0.00012886,2]
[339168978,1727273443192,-500.0,0.00012886,2]
[339168979,1727273443201,-500.0,0.00012886,2]
[339168980,1727273443211,-500.0,0.00012886,2]
[339168981,1727273443220,-500.0,0.00012887,2]
[339168982,1727273443229,-500.0,0.00012887,2]
[339168983,1727273443238,-501.70377032,0.00012887,2]
[339168984,1727273443247,-500.0,0.00012887,2]
[339168985,1727273443256,-156.75846537,0.00012887,2]
[339168986,1727273443265,-500.98027684,0.00012887,2]
[339168987,1727273443274,-531.57846585,0.00012887,2]
[339168988,1727273443283,-500.0,0.00012887,2]
[339168989,1727273443294,-500.0,0.00012887,2]
[339168990,1727273443303,-500.0,0.00012887,2]
[339168992,1727273443313,-626.18789285,0.00012887,2]
[339168994,1727273443322,-193.8494136,0.00012887,2]
[339168995,1727273443331,-500.0,0.00012887,2]
[339168996,1727273443345,-500.0,0.00012887,2]
[339168997,1727273443354,-500.0,0.00012887,2]
[339168998,1727273443538,-500.0,0.00012887,2]
[339168999,1727273443548,-500.0,0.00012887,2]
[339169000,1727273443558,-500.0,0.00012887,2]
[339169001,1727273443567,-205.08910018,0.00012887,2]
[339169002,1727273443576,-500.0,0.00012887,2]
[339169003,1727273443587,-500.0,0.00012887,2]
[339169004,1727273443597,-500.0,0.00012887,2]
[339169005,1727273443606,-500.0,0.00012887,2]
[339169006,1727273443615,-500.0,0.00012887,2]
[339169007,1727273443625,-500.0,0.00012887,2]
[339169008,1727273443634,-500.0,0.00012887,2]
[339169009,1727273443644,-500.0,0.00012887,2]
[339169010,1727273443653,-500.0,0.00012887,2]
[339169011,1727273443662,-500.0,0.00012887,2]
[339169012,1727273443671,-500.0,0.00012887,2]
[339169013,1727273443681,-500.74384316,0.00012887,2]
[339169014,1727273443690,-500.0,0.00012887,2]
[339169015,1727273443700,-500.0,0.00012887,2]
[339169016,1727273443709,-500.0,0.00012887,2]
[339169017,1727273443718,-150.0,0.00012887,2]
[339169018,1727273443727,-150.0,0.00012887,2]
[339169019,1727273443736,-773.74126147,0.00012889,2]
[339169020,1727273443746,-150.0,0.00012889,2]
[339169021,1727273443755,-500.0,0.00012891,2]
[339169022,1727273443764,-500.0,0.00012891,2]
[339169023,1727273443774,-1136.59,0.00012891,2]
[339169024,1727273443783,-1120.77,0.00012891,2]
[339169025,1727273443792,-1147.34,0.00012891,2]
[339169026,1727273443802,-552.27,0.00012891,2]
[339169027,1727273443811,-1445.38,0.00012891,2]
[339169028,1727273443820,-500.0,0.00012891,2]
[339169029,1727273443829,-500.0,0.00012891,2]
[339169030,1727273443841,-500.0,0.00012891,2]
[339169031,1727273443850,-500.0,0.00012891,2]
[339169032,1727273443859,-500.0,0.00012891,2]
[339169033,1727273443869,-2373.4,0.00012891,2]
[339169034,1727273443878,-2171.5,0.00012891,2]
[339169035,1727273443887,-2799.94,0.00012891,2]
[339169036,1727273443897,-1477.97,0.00012891,2]
[339169037,1727273443906,-500.0,0.00012891,2]
[339169038,1727273443915,-500.0,0.00012891,2]
[339169039,1727273443925,-1947.44,0.00012891,2]
[339169040,1727273443934,-500.0,0.00012891,2]
[339169041,1727273443943,-630.53,0.00012891,2]
[339169042,1727273443952,-500.0,0.00012891,2]
[339169043,1727273443961,-500.0,0.00012891,2]
[339169044,1727273443971,-566.3,0.00012891,2]
[339169045,1727273443980,-500.0,0.00012891,2]
[339169046,1727273443989,-500.0,0.00012891,2]
[339169047,1727273444000,-500.0,0.00012891,2]
[339169048,1727273444011,-500.0,0.00012891,2]
[339169049,1727273444020,-3682.71,0.00012891,2]
[339169050,1727273444030,-462.8,0.00012891,2]
[339169051,1727273444039,-500.0,0.00012891,2]
[339169052,1727273444050,-2049.97,0.00012891,2]
[339169053,1727273444059,-500.0,0.00012891,2]
[339169054,1727273444069,-500.0,0.00012891,2]
[339169055,1727273444080,-572.81,0.00012891,2]
[339169056,1727273444091,-500.0,0.00012891,2]
[339169057,1727273444101,-500.0,0.00012891,2]
[339169058,1727273444110,-500.0,0.00012891,2]
[339169059,1727273444121,-500.0,0.00012891,2]
[339169060,1727273444132,-576.64,0.00012891,2]